[Event "African Individual Chess-ch Open 2024"]
[Site "Accra"]
[Date "2024.03.17"]
[Round "5.3"]
[White "Rakotomaharo, Fy Antenaina"]
[Black "Silva, David"]
[Result "1/2-1/2"]
[ECO "A48"]
[WhiteElo "2454"]
[BlackElo "2358"]
[Annotator "RC"]
[PlyCount "67"]
[EventDate "2024.03.13"]
[EventCountry "GHA"]
[SourceTitle "playchess.com"]
[Source "ChessBase"]
[SourceQuality "1"]
[TimeControl "5400+30"]

1. d4 {[%emt 0:00:13]} Nf6 {[%emt 0:00:11]} 2. Nf3 {[%emt 0:00:06]} g6 {[%emt 0:00:23]} 3. Bg5 {[%emt 0:00:07]} Bg7 {[%emt 0:00:12]} 4. Nbd2 {[%emt 0:00:07]} O-O {[%emt 0:04:03]} 5. c3 {[%emt 0:00:07]} d6 {[%emt 0:00:57]} 6. e4 {[%emt 0:00:12]} h6 {[%emt 0:10:04]} 7. Bh4 {[%emt 0:00:08]} g5 {[%emt 0:00:22]} 8. Bg3 {[%emt 0:00:09]} Nh5 {[%emt 0:00:05]} 9. Bc4 {[%emt 0:34:20]} e6 {[%emt 0:01:37]} 10. Bb3 {[%emt 0:00:31]} Nc6 {[%emt 0:03:31]} 11. Ng1 {[%emt 0:01:35]} Nxg3 {[%emt 0:01:05]} 12. hxg3 {[%emt 0:00:04]} e5 {[%emt 0:01:39]} 13. d5 {[%emt 0:01:18]} Ne7 {[%emt 0:00:13]} 14. g4 {[%emt 0:00:08]} c6 {[%emt 0:00:38]} 15. c4 {[%emt 0:01:36]} b5 {[%emt 0:01:09]} 16. dxc6 {[%emt 0:05:35]} Nxc6 {[%emt 0:00:52]} 17. Ne2 {[%emt 0:13:51]} Nb4 {[%emt 0:03:47]} 18. Ng3 {[%emt 0:10:27]} Nd3+ {[%emt 0:00:28]} 19. Kf1 {[%emt 0:00:05]} Nxb2 {[%emt 0:00:28]} 20. Qe2 {[%emt 0:00:05]} bxc4 {[%emt 0:02:14]} 21. Nxc4 {[%emt 0:00:04]} Nxc4 {[%emt 0:01:10]} 22. Bxc4 {[%emt 0:00:03]} Be6 {[%emt 0:02:13]} 23. Nf5 {[%emt 0:03:49]} Bxf5 {[%emt 0:00:27]} 24. gxf5 {[%emt 0:00:04]} Qf6 {[%emt 0:01:08]} 25. Rh3 {[%emt 0:01:07]} Rfc8 {[%emt 0:00:26]} 26. Rb3 {[%emt 0:00:22]} Rc7 {[%emt 0:00:30]} 27. Rab1 {[%emt 0:01:10]} Rac8 {[%emt 0:00:25]} 28. Rb8 {[%emt 0:00:07]} Qd8 {[%emt 0:00:54]} 29. Rxc8 {[%emt 0:00:05]} Qxc8 {[%emt 0:00:20]} 30. Bb3 {[%emt 0:01:30]} Rc1+ {[%emt 0:00:34]} 31. Rxc1 {[%emt 0:00:05]} Qxc1+ {[%emt 0:00:21]} 32. Qe1 {[%emt 0:00:20]} Qxe1+ {[%emt 0:00:42]} 33. Kxe1 {[%emt 0:00:01]} Bf6 {[%emt 0:00:21]} 34. g4 {[%emt 0:01:10]} 1/2-1/2

[Event "African Individual Chess-ch Open 2024"]
[Site "Accra"]
[Date "2024.03.17"]
[Round "5.4"]
[White "Aikhoje, Odion"]
[Black "ONOKPITE, Kennedy"]
[Result "1-0"]
[ECO "D02"]
[WhiteElo "2215"]
[BlackElo "2101"]
[Annotator "RC"]
[PlyCount "109"]
[EventDate "2024.03.13"]
[EventCountry "GHA"]
[SourceTitle "playchess.com"]
[Source "ChessBase"]
[SourceQuality "1"]
[TimeControl "5400+30"]

1. Nf3 {[%emt 0:00:08]} d5 {[%emt 0:00:08]} 2. d4 {[%emt 0:00:09]} Nf6 {[%emt 0:00:09]} 3. Bf4 {[%emt 0:00:17]} c5 {[%emt 0:00:15]} 4. c3 {[%emt 0:00:04]} Nc6 {[%emt 0:01:15]} 5. e3 {[%emt 0:00:09]} Qb6 {[%emt 0:00:41]} 6. Qb3 {[%emt 0:00:05]} c4 {[%emt 0:00:50]} 7. Qc2 {[%emt 0:00:05]} Bf5 {[%emt 0:01:29]} 8. Qc1 {[%emt 0:00:06]} h6 {[%emt 0:05:10]} 9. Nbd2 {[%emt 0:01:42]} Rc8 {[%emt 0:00:31]} 10. Be2 {[%emt 0:05:43]} e6 {[%emt 0:00:48]} 11. h3 {[%emt 0:04:08]} Be7 {[%emt 0:01:10]} 12. O-O {[%emt 0:03:00]} Qd8 {[%emt 0:07:46]} 13. Re1 {[%emt 0:04:24]} O-O {[%emt 0:02:29]} 14. Ne5 {[%emt 0:03:07]} Bd6 {[%emt 0:07:44]} 15. Nxc6 {[%emt 0:01:18]} Rxc6 {[%emt 0:00:24]} 16. Bf3 {[%emt 0:02:40]} Ne4 {[%emt 0:05:13]} 17. Bxe4 {[%emt 0:03:44]} Bxe4 {[%emt 0:00:33]} 18. Nxe4 {[%emt 0:17:57]} dxe4 {[%emt 0:00:03]} 19. Qc2 {[%emt 0:00:16]} f5 {[%emt 0:03:03]} 20. Rad1 {[%emt 0:06:03]} Bxf4 {[%emt 0:01:18]} 21. exf4 {[%emt 0:00:27]} Qd6 {[%emt 0:00:13]} 22. Qd2 {[%emt 0:04:24]} Ra6 {[%emt 0:05:52]} 23. a3 {[%emt 0:00:39]} Rb6 {[%emt 0:01:35]} 24. Re2 {[%emt 0:00:33]} Rb5 {[%emt 0:00:12]} 25. Qe3 {[%emt 0:00:25]} Qd5 {[%emt 0:10:38]} 26. Rdd2 {[%emt 0:02:34]} Kf7 {[%emt 0:10:50]} 27. Qg3 {[%emt 0:01:57]} Qd6 {[%emt 0:03:38]} 28. f3 {[%emt 0:05:01]} exf3 {[%emt 0:04:01]} 29. Qxf3 {[%emt 0:01:29]} g6 {[%emt 0:01:21]} 30. Qf2 {[%emt 0:04:44]} Rd5 {[%emt 0:00:34]} 31. Re5 {[%emt 0:00:25]} Rc8 {[%emt 0:03:28]} 32. Qh4 {[%emt 0:03:03]} Kg7 {[%emt 0:01:16]} 33. Rxd5 {[%emt 0:03:50]} exd5 {[%emt 0:01:08]} 34. Re2 {[%emt 0:00:16]} Rc7 {[%emt 0:00:12]} 35. Re5 {[%emt 0:00:14]} Rd7 {[%emt 0:00:12]} 36. Qe1 {[%emt 0:03:27]} Kf7 {[%emt 0:01:06]} 37. Re8 {[%emt 0:04:33]} b5 {[%emt 0:05:02]} 38. Rh8 {[%emt 0:03:40]} Re7 {[%emt 0:04:51]} 39. Rh7+ {[%emt 0:00:21]} Ke8 {[%emt 0:00:13]} 40. Rxe7+ {[%emt 0:00:09]} Qxe7 {[%emt 0:00:01]} 41. Qe5 {[%emt 0:00:28]} a5 {[%emt 0:03:39]} 42. Kf2 {[%emt 0:03:08]} Qxe5 {[%emt 0:01:08]} 43. dxe5 {[%emt 0:08:14]} d4 {[%emt 0:01:11]} 44. cxd4 {[%emt 0:02:13]} b4 {[%emt 0:01:33]} 45. axb4 {[%emt 0:00:37]} c3 {[%emt 0:02:16]} 46. bxc3 {[%emt 0:00:00]} a4 {[%emt 0:00:00]} 47. b5 {[%emt 0:00:00]} a3 {[%emt 0:00:00]} 48. b6 {[%emt 0:00:00]} Kd8 {[%emt 0:00:00]} 49. e6 {[%emt 0:00:00]} a2 {[%emt 0:00:00]} 50. b7 {[%emt 0:00:00]} Kc7 {[%emt 0:00:00]} 51. e7 {[%emt 0:00:00]} a1=Q {[%emt 0:00:00]} 52. b8=Q+ {[%emt 0:00:00]} Kxb8 {[%emt 0:00:00]} 53. e8=Q+ {[%emt 0:00:00]} Kc7 {[%emt 0:00:00]} 54. Qe5+ {[%emt 0:00:00]} Kb7 {[%emt 0:00:00]} 55. d5 {[%emt 0:00:00]} 1-0

[Event "African Individual Chess-ch Open 2024"]
[Site "Accra"]
[Date "2024.03.17"]
[Round "5.5"]
[White "Paiva, Donaldo"]
[Black "Ortega Amarelle, Mariano"]
[Result "0-1"]
[ECO "D38"]
[WhiteElo "2172"]
[BlackElo "2482"]
[Annotator "TA"]
[PlyCount "96"]
[EventDate "2024.03.13"]
[EventCountry "GHA"]
[SourceTitle "playchess.com"]
[Source "ChessBase"]
[SourceQuality "1"]
[TimeControl "5400+30"]

{[%evp 12,96,25,23,31,39,31,11,30,24,0,0,2,12,14,0,7,0,8,0,0,6,0,0,-5,-10,0,0,0,0,0,0,0,0,162,167,195,193,188,195,193,54,179,176,189,60,40,0,0,0,120,0,0,-18,-29,-33,0,-44,-29,-38,-29,-53,100,-8,0,-36,-4,-6,135,-199,-206,-1614,-1041,-1596,-1502,-29965,-29970,-29975,-29976,-29976,-29977,-29979,-29980,-29980,-29981,-29985,-29986]} 1. d4 {[%emt 0:00:02]} Nf6 {[%emt 0:00:18]} 2. c4 {[%emt 0:00:07]} e6 {[%emt 0:00:06]} 3. Nf3 {[%emt 0:00:05]} d5 {[%emt 0:00:40]} 4. Nc3 {[%emt 0:00:07]} Bb4 {[%emt 0:00:12]} 5. cxd5 {[%emt 0:00:47]} exd5 {[%emt 0:00:07]} 6. Bg5 {[%emt 0:00:05]} O-O {[%emt 0:01:33]} 7. e3 {[%emt 0:00:22]} Bf5 {[%emt 0:00:27]} 8. Qb3 {[%emt 0:04:13]} Bxc3+ {[%emt 0:00:13]} 9. bxc3 {[%emt 0:01:31][%cal Og5f6]} Nbd7 {[%emt 0:00:11] Die Stellung ist ausgeglichen.} 10. Be2 {[%emt 0:06:02]} c5 {[%emt 0:00:17]} 11. O-O {[%emt 0:00:18]} c4 {[%emt 0:00:14]} 12. Qxb7 {[%emt 0:00:14]} Qa5 {[%emt 0:04:55]} 13. Qb4 {[%emt 0:01:55]} Qxb4 {[%emt 0:15:31]} 14. cxb4 {[%emt 0:00:03]} Ne4 {[%emt 0:00:09]} 15. Be7 {[%emt 0:03:54]} Rfe8 {[%emt 0:03:01]} 16. Bc5 {[%emt 0:00:07]} Nc3 {[%emt 0:13:32]} 17. Rfe1 {[%emt 0:03:32]} a5 {[%emt 0:02:48] Weiss ist schwach auf den weissen Feldern} 18. a3 {[%emt 0:02:24]} Nxc5 {[%emt 0:09:25]} 19. bxc5 {[%emt 0:00:05]} Rab8 {[%emt 0:04:03]} 20. Bf1 {[%emt 0:00:46]} Rb2 {[%emt 0:24:17]} 21. Ne5 {[%emt 0:02:24]} f6 {[%emt 0:04:16]} 22. Nc6 {[%emt 0:00:07]} Na4 $2 {[%emt 0:10:15]} (22... Ne4 $11) 23. Nxa5 $18 {[%emt 0:06:45][%cal Of1c4]} c3 {[%emt 0:00:08][%cal Bc4c3,Bc3c2][%mdl 32]} 24. Nc6 {[%emt 0:00:07] Droht Nb4 und aus.} c2 {[%emt 0:02:08]} 25. Nb4 {[%emt 0:00:06]} Nc3 {[%emt 0:01:50]} 26. Rec1 {[%emt 0:06:39]} (26. Rac1 $18) 26... Kf8 {[%emt 0:01:07] [#]} ({Vorzuziehen ist} 26... h5 $14) 27. g4 $1 {[%emt 0:05:02]} Bg6 {[%emt 0:00:19]} (27... Be4 28. Bd3) 28. Ba6 {[%emt 0:03:09]} (28. Kg2 $18) 28... Ra8 $1 $14 {[%emt 0:01:07][%cal Oa8a6] ...Rxa6! wäre nun fies.} 29. c6 {[%emt 0:00:13]} (29. Kg2 $5) 29... Rxa6 $1 {[%emt 0:00:59]} 30. Nxa6 {[%emt 0:00:04] Schwarz muss nun c7 beachten.} Ke7 {[%emt 0:00:22] [#]} (30... Ne2+ $11 {hält das Gleichgewicht.} 31. Kg2 Ke7) 31. Kg2 {[%emt 0:16:12]} ({Weiss braucht} 31. Nc5 $1 $16 {Und c7 würde nun gewinnen.} Kd8 32. Kf1) 31... Ne2 $1 $11 {[%emt 0:00:47]} 32. Nb4 {[%emt 0:03:37]} Nxc1 {[%emt 0:00:12]} 33. Rxc1 {[%emt 0:00:03][%mdl 4096] Endspiel. KRB-KRN} Rb1 {[%emt 0:00:36]} 34. Na2 {[%emt 0:00:06]} (34. Nxd5+ $2 {geht unter.} Kd6 $19) 34... Kd6 {[%emt 0:00:39][%mdl 1024] Schwarz hat Kompensation.} 35. f4 {[%emt 0:01:52]} Be4+ {[%emt 0:00:28]} 36. Kf2 {[%emt 0:00:05]} Rb2 $2 {[%emt 0:00:41]} (36... Bd3 $15 {behält die Oberhand.}) 37. Nb4 {[%emt 0:00:09]} (37. Nc3 $16) 37... Rb1 {[%emt 0:00:09]} 38. Na2 {[%emt 0:00:05]} Kxc6 {[%emt 0:00:50] ...Kb5 ist eine echte Drohung.} 39. Ke2 {[%emt 0:00:15]} Kb5 {[%emt 0:00:36]} (39... Rxc1 $11 40. Nxc1 f5 41. gxf5 Kb5) 40. Kd2 $2 {[%emt 0:00:19][%mdl 8192]} (40. Nc3+ $16 Kb6 41. Kd2) 40... Kc4 $19 {[%emt 0:00:22]} 41. Re1 $2 {[%emt 0:07:07]} (41. Nb4 Kb3 42. h4) 41... Rxe1 {[%emt 0:00:00]} 42. Kxe1 {[%emt 0:00:00] KB-KN} Kd3 {[%emt 0:00:00]} 43. a4 {[%emt 0:00:00]} Kxe3 {[%emt 0:00:00] Schwarz setzt Matt.} 44. a5 {[%emt 0:00:00]} Bd3 $1 {[%emt 0:00:00]} (44... Kxd4 45. Kd2 $17) 45. Nc1 {[%emt 0:00:00]} Bc4 {[%emt 0:00:00]} (45... Kxd4 46. Kd2 Bc4 47. Kxc2 $17) 46. f5 {[%emt 0:00:00]} h6 {[%emt 0:00:00]} (46... Kxd4 $2 47. Kd2 $19) 47. h3 {[%emt 0:00:00]} Ba6 {[%emt 0:00:00]} (47... Kxd4 48. Kd2 $19) 48. h4 {[%emt 0:00:00]} Bc4 {[%emt 0:00:00] Kein schönes Erlebnis für Weiß.   Gewichteter Fehlerwert: Weiß=0.54/Schwarz=0.23 (präzise) .  Verlustzug:     	Weiß=1     	Schwarz=1     Fehler:       	Weiß=5     	Schwarz=4     Ungenau:       	Weiß=2     	Schwarz=2     OK:         	Weiß=13    	Schwarz=12    Bester:       	---       	Schwarz=4     Stark:        	---       	Schwarz=3     Brilliant:      	Weiß=1     	---} (48... Kxd4 49. Kd2 $17) 0-1

[Event "African Individual Chess-ch Open 2024"]
[Site "Accra"]
[Date "2024.03.17"]
[Round "5.6"]
[White "De Gondo, Simplice Armel"]
[Black "Abdulraheem Abdulrahman Akinto"]
[Result "0-1"]
[ECO "E07"]
[WhiteElo "2024"]
[BlackElo "2229"]
[Annotator "TA"]
[PlyCount "103"]
[EventDate "2024.03.13"]
[EventCountry "GHA"]
[SourceTitle "playchess.com"]
[Source "ChessBase"]
[SourceQuality "1"]
[TimeControl "5400+30"]

{[%evp 15,103,-29,-24,-14,-10,-60,-43,-92,-87,-94,-35,-34,-32,-36,-43,-63,-45,-43,-44,-43,-46,-41,28,-14,-7,-12,-17,-67,-63,-67,-48,-54,-47,-57,-44,-50,-69,-58,-22,-106,-67,-69,0,-6,-21,-17,0,-9,47,47,36,30,83,107,86,93,118,90,99,18,8,0,0,0,0,0,0,-538,-595,-573,-274,-622,-609,-699,-862,-1045,-896,-865,-1140,-1055,-1088,-29980,-29981,-29981,-29982,-29982,-29983,-29983,-29984,-29984]} 1. d4 {[%emt 0:00:02]} Nf6 {[%emt 0:00:24]} 2. Nf3 {[%emt 0:00:02]} e6 {[%emt 0:00:42]} 3. g3 {[%emt 0:00:03]} d5 {[%emt 0:01:36]} 4. Bg2 {[%emt 0:00:01]} Be7 {[%emt 0:00:50]} 5. O-O {[%emt 0:00:02]} O-O {[%emt 0:00:13]} 6. c4 {[%emt 0:00:00]} c6 {[%emt 0:03:15]} 7. Nc3 {[%emt 0:00:27]} Nbd7 {[%emt 0:00:45]} 8. Qc2 {[%emt 0:02:32]} dxc4 {[%emt 0:03:53]} 9. Rd1 {[%emt 0:00:02]} b5 {[%emt 0:03:01]} 10. a4 {[%emt 0:02:15]} ({Günstiger ist} 10. b3 $11) 10... b4 $15 {[%emt 0:13:05]} 11. Nb1 {[%emt 0:09:41]} (11. Ne4 $15) 11... Ba6 $17 {[%emt 0:01:16]} 12. e4 {[%emt 0:05:54]} Qc8 {[%emt 0:07:05]} (12... Rc8 $17 13. Bg5 c5) 13. Bg5 $15 {[%emt 0:02:59]} h6 {[%emt 0:01:25]} 14. Bxf6 {[%emt 0:00:53]} Nxf6 {[%emt 0:03:26]} 15. Ne5 {[%emt 0:00:13]} Rd8 {[%emt 0:04:36]} 16. Nxc4 {[%emt 0:01:27]} Bxc4 {[%emt 0:05:44]} 17. Qxc4 {[%emt 0:00:04]} e5 {[%emt 0:00:16]} 18. Rd3 {[%emt 0:05:02]} c5 {[%emt 0:07:50]} (18... exd4 $15 19. Nd2 Nd7) 19. dxe5 {[%emt 0:10:18]} Rxd3 {[%emt 0:00:48]} 20. Qxd3 {[%emt 0:00:02]} c4 {[%emt 0:01:16]} 21. Qc2 {[%emt 0:11:00]} (21. Qd2 $11 Ng4 22. Qe2) 21... Ng4 $36 {[%emt 0:03:08][%mdl 2048] Schwarz drückt.} 22. Bh3 {[%emt 0:00:13] [#]} Ne3 $1 {[%emt 0:02:07]} 23. fxe3 {[%emt 0:01:45]} Qxh3 {[%emt 0:00:02]} 24. Nd2 $1 {[%emt 0:00:11] [#]} c3 {[%emt 0:08:28]} 25. bxc3 {[%emt 0:00:02]} Rc8 {[%emt 0:03:27]} 26. c4 {[%emt 0:00:02]} h5 {[%emt 0:00:21]} 27. Rf1 {[%emt 0:06:08]} (27. Nf3 $11 {hält das Gleichgewicht.}) 27... Qe6 {[%emt 0:01:01][%cal Oh5h4]} 28. Rc1 {[%emt 0:25:11][%cal Bf1c1,Bc1d1,Bd1d8][%mdl 32]} Bc5 {[%emt 0:04:43] Schwarz steht aktiver.} (28... Qxe5 $15 29. Nf3 Qc5) 29. Kf2 $1 $11 {[%emt 0:02:06]} Qxe5 {[%emt 0:04:11]} 30. Nf3 {[%emt 0:00:23]} Qf6 {[%emt 0:05:30]} 31. Rd1 {[%emt 0:02:20]} Qc3 {[%emt 0:03:46]} (31... Bb6 $11) 32. Qxc3 $14 {[%emt 0:00:53]} bxc3 {[%emt 0:00:01][%mdl 4096] Endspiel. KRB-KRN} 33. Ke2 {[%emt 0:00:03]} Rb8 {[%emt 0:03:13]} (33... Ba3 $1 $11 {bleibt in der Remisbreite.} 34. Ne1 (34. Kd3 c2 $11) 34... Rxc4) 34. Kd3 $16 {[%emt 0:00:41]} Rb3 {[%emt 0:00:49]} 35. Kc2 {[%emt 0:00:54]} Ra3 {[%emt 0:00:18][%cal Oc5b4]} 36. Rd8+ {[%emt 0:07:07]} Kh7 {[%emt 0:00:02][%cal Oc5b4] [#]} 37. Rd5 {[%emt 0:01:06]} (37. Ne5 $1 $16) 37... Bb4 $1 $11 {[%emt 0:01:23] Droht ...Ra2+ und aus.} 38. Nd4 {[%emt 0:04:06]} (38. Rxh5+ Kg6 39. Rg5+ Kh7) 38... Ra2+ {[%emt 0:00:27]} (38... Rxa4 $2 {zu gefräßig.} 39. Kb3 $18 (39. Rxh5+ Kg6 $16) (39. Rxh5+ Kg6 $11)) 39. Kb1 $1 {[%emt 0:00:16]} Rb2+ {[%emt 0:01:07]} (39... Rxh2 40. Nc2 $14) 40. Kc1 {[%emt 0:00:17] Nc2 ist eine echte Drohung.} Rxh2 {[%emt 0:01:41]} 41. Nc2 $2 {[%emt 0:01:26][%mdl 8192]} ({Falsch wäre} 41. c5 $2 Ba3+ 42. Kb1 Rb2+ 43. Kc1 Rd2+ 44. Kb1 c2+ 45. Nxc2 Rxd5 46. exd5 Bxc5 $19) (41. Kb1 $1 $11) 41... Rh1+ $19 {[%emt 0:00:53]} 42. Rd1 {[%emt 0:00:01]} Rxd1+ {[%emt 0:00:59]} 43. Kxd1 {[%emt 0:00:02] KB-KN} Bd6 {[%emt 0:00:42]} 44. c5 {[%emt 0:00:23]} Bxc5 {[%emt 0:01:11] Zielt auf ...Bd6 ab.} 45. Ke2 {[%emt 0:00:04]} Kg6 {[%emt 0:01:32] ...Bd6 wäre nun fies.} 46. e5 {[%emt 0:01:58]} Kf5 {[%emt 0:00:30]} 47. Kd3 {[%emt 0:00:41]} Kxe5 {[%emt 0:00:00]} 48. Nd4 {[%emt 0:00:00]} Bxd4 {[%emt 0:00:00] Schwarz setzt Matt.} 49. exd4+ {[%emt 0:00:00]} Kd5 {[%emt 0:00:00]} 50. Kxc3 {[%emt 0:00:00]} g5 {[%emt 0:00:00]} 51. Kd3 {[%emt 0:00:00]} f5 {[%emt 0:00:00]} 52. Ke3 {[%emt 0:05:12] Gewichteter Fehlerwert: Weiß=0.44/Schwarz=0.18 (sehr präzise) .  Verlustzug:     	Weiß=1     	---        Fehler:       	Weiß=5     	Schwarz=5     Ungenau:       	Weiß=2     	Schwarz=2     OK:         	Weiß=11    	Schwarz=10    Bester:       	Weiß=4     	Schwarz=9     Stark:        	Weiß=3     	Schwarz=1     Brilliant:      	---       	Schwarz=1} 0-1

[Event "African Individual Chess-ch Open 2024"]
[Site "Accra"]
[Date "2024.03.17"]
[Round "5.7"]
[White "Cogan, Nicolas"]
[Black "Zhemba, Jemusse"]
[Result "0-1"]
[ECO "D03"]
[WhiteElo "2070"]
[BlackElo "2226"]
[Annotator "RC"]
[PlyCount "120"]
[EventDate "2024.03.13"]
[EventCountry "GHA"]
[SourceTitle "playchess.com"]
[Source "ChessBase"]
[SourceQuality "1"]
[TimeControl "5400+30"]

1. d4 {[%emt 0:00:58]} Nf6 {[%emt 0:00:34]} 2. Nf3 {[%emt 0:00:34]} b6 {[%emt 0:00:41]} 3. Bg5 {[%emt 0:01:33]} Bb7 {[%emt 0:00:55]} 4. Nbd2 {[%emt 0:00:26]} d5 {[%emt 0:01:21]} 5. e3 {[%emt 0:00:58]} Nbd7 {[%emt 0:00:23]} 6. Bd3 {[%emt 0:00:56]} Ne4 {[%emt 0:02:24]} 7. Bh4 {[%emt 0:01:14]} Ndf6 {[%emt 0:02:58]} 8. Ne5 {[%emt 0:02:18]} a6 {[%emt 0:04:51]} 9. O-O {[%emt 0:02:35]} Nxd2 {[%emt 0:03:30]} 10. Qxd2 {[%emt 0:00:35]} e6 {[%emt 0:00:23]} 11. Qe2 {[%emt 0:04:52]} Be7 {[%emt 0:00:27]} 12. f4 {[%emt 0:04:01]} g6 {[%emt 0:01:13]} 13. Bg5 {[%emt 0:21:07]} h6 {[%emt 0:05:47]} 14. Bxf6 {[%emt 0:17:48]} Bxf6 {[%emt 0:00:12]} 15. a4 {[%emt 0:06:23]} a5 {[%emt 0:07:44]} 16. Rf3 {[%emt 0:06:25]} h5 {[%emt 0:04:21]} 17. Raf1 {[%emt 0:05:36]} Qd6 {[%emt 0:02:13]} 18. c3 {[%emt 0:01:23]} Bg7 {[%emt 0:01:27]} 19. Qc2 {[%emt 0:01:48]} Rh6 {[%emt 0:02:41]} 20. Rh3 {[%emt 0:01:53]} f5 {[%emt 0:00:50]} 21. Nf3 {[%emt 0:04:34]} Bf6 {[%emt 0:00:31]} 22. Qf2 {[%emt 0:04:45]} O-O-O {[%emt 0:00:32]} 23. Rb1 {[%emt 0:01:15]} c5 {[%emt 0:02:27]} 24. Bb5 {[%emt 0:01:54]} Kb8 {[%emt 0:00:22]} 25. Qe2 {[%emt 0:01:02]} Ka7 {[%emt 0:01:30]} 26. Ne1 {[%emt 0:02:52]} g5 {[%emt 0:01:34]} 27. fxg5 {[%emt 0:02:48]} Bxg5 {[%emt 0:00:10]} 28. Nd3 {[%emt 0:01:00]} h4 {[%emt 0:02:44]} 29. b4 {[%emt 0:00:52]} axb4 {[%emt 0:00:44]} 30. cxb4 {[%emt 0:00:23]} c4 {[%emt 0:00:15]} 31. Ne5 {[%emt 0:00:04]} Rh7 {[%emt 0:00:28]} 32. a5 {[%emt 0:00:13]} Rg7 {[%emt 0:05:15]} 33. Rf3 {[%emt 0:00:30]} Rdg8 {[%emt 0:00:29]} 34. Qa2 {[%emt 0:01:23]} Kb8 {[%emt 0:03:15]} 35. axb6 {[%emt 0:00:28]} Qxb6 {[%emt 0:00:28]} 36. Nd7+ {[%emt 0:00:20]} Rxd7 {[%emt 0:00:03]} 37. Bxd7 {[%emt 0:00:01]} Rg7 {[%emt 0:01:19]} 38. Qa4 {[%emt 0:01:07]} Bd8 {[%emt 0:02:13]} 39. Qb5 {[%emt 0:00:34]} Qd6 {[%emt 0:01:00]} 40. Be8 {[%emt 0:00:29]} Bc7 {[%emt 0:00:34]} 41. Rh3 {[%emt 0:00:00]} f4 {[%emt 0:00:00]} 42. Qc5 {[%emt 0:00:00]} fxe3 {[%emt 0:00:00]} 43. Qxd6 {[%emt 0:00:00]} Bxd6 {[%emt 0:00:00]} 44. Rxe3 {[%emt 0:00:08]} Re7 {[%emt 0:00:00]} 45. Bh5 {[%emt 0:00:42]} Bf4 {[%emt 0:00:00]} 46. Re2 {[%emt 0:00:47]} e5 {[%emt 0:00:00]} 47. dxe5 {[%emt 0:00:32]} d4 {[%emt 0:00:00]} 48. Rbe1 {[%emt 0:01:53]} d3 {[%emt 0:00:00]} 49. Re4 {[%emt 0:00:28]} d2 {[%emt 0:00:00]} 50. Rf1 {[%emt 0:00:30]} Bxh2+ {[%emt 0:00:00]} 51. Kxh2 {[%emt 0:00:06]} Bxe4 {[%emt 0:00:00]} 52. Bd1 {[%emt 0:00:56]} Rxe5 {[%emt 0:00:00]} 53. Rf8+ {[%emt 0:00:26]} Kc7 {[%emt 0:00:00]} 54. Rf7+ {[%emt 0:00:31]} Kb6 {[%emt 0:00:00]} 55. Rf8 {[%emt 0:00:32]} c3 {[%emt 0:00:00]} 56. Rd8 {[%emt 0:00:27]} Rg5 {[%emt 0:00:00]} 57. Kg1 {[%emt 0:00:34]} Rxg2+ {[%emt 0:00:00]} 58. Kf1 {[%emt 0:00:04]} h3 {[%emt 0:00:00]} 59. b5 {[%emt 0:00:35]} h2 {[%emt 0:00:00]} 60. Rh8 {[%emt 0:00:18]} Rg1+ {[%emt 0:00:00]} 0-1